[Event "December 19 Late 2023"]
[Site "https://www.chess.com"]
[Date "2023.12.19"]
[Round "4"]
[White "Makarian, Rudik"]
[Black "Estrada Nieto, Julian"]
[Result "1-0"]
[Board "32"]
[TimeControl "180+1"]
[WhiteFideId "44105681"]
[BlackFideId "5101018"]
[WhiteElo "2540"]
[BlackElo "2161"]
[WhiteTeam "FID"]
[BlackTeam "ESP"]
[WhiteClock "0:00:20"]
[BlackClock "0:00:00"]

1. a3 {[%clk 0:02:59]}  d5 {[%clk 0:02:57]} 2. b4 {[%clk 0:02:59]}  Nf6 {[%clk 0:02:57]} 3. Bb2 {[%clk 0:02:59]}  Bf5 {[%clk 0:02:57]} 4. Nf3 {[%clk 0:02:58]}  e6 {[%clk 0:02:57]} 5. g3 {[%clk 0:02:58]}  h6 {[%clk 0:02:54]} 6. Bg2 {[%clk 0:02:58]}  Nbd7 {[%clk 0:02:54]} 7. d3 {[%clk 0:02:58]}  Bd6 {[%clk 0:02:46]} 8. Nbd2 {[%clk 0:02:58]}  O-O {[%clk 0:02:46]} 9. c4 {[%clk 0:02:58]}  c6 {[%clk 0:02:45]} 10. O-O {[%clk 0:02:58]}  a5 {[%clk 0:02:43]} 11. Bc3 {[%clk 0:02:55]}  Qe7 {[%clk 0:02:28]} 12. Qb3 {[%clk 0:02:48]}  e5 {[%clk 0:02:11]} 13. bxa5 {[%clk 0:02:41]}  d4 {[%clk 0:02:05]} 14. Bb4 {[%clk 0:02:41]}  c5 {[%clk 0:02:05]} 15. Nh4 {[%clk 0:02:27]}  Bg4 {[%clk 0:01:59]} 16. h3 {[%clk 0:02:18]}  Be6 {[%clk 0:01:48]} 17. Rfb1 {[%clk 0:02:08]}  Ra7 {[%clk 0:01:41]} 18. Qb2 {[%clk 0:02:05]}  cxb4 {[%clk 0:01:36]} 19. axb4 {[%clk 0:02:06]}  g5 {[%clk 0:01:29]} 20. Nhf3 {[%clk 0:02:05]}  Bf5 {[%clk 0:01:29]} 21. c5 {[%clk 0:02:02]}  Bc7 {[%clk 0:01:26]} 22. Nc4 {[%clk 0:02:02]}  Qe6 {[%clk 0:01:11]} 23. b5 {[%clk 0:01:54]}  Nxc5 {[%clk 0:00:46]} 24. b6 {[%clk 0:01:54]}  Bxb6 {[%clk 0:00:45]} 25. Qxb6 {[%clk 0:01:51]}  Qxb6 {[%clk 0:00:39]} 26. axb6 {[%clk 0:01:51]}  Rxa1 {[%clk 0:00:38]} 27. Rxa1 {[%clk 0:01:51]}  Nfd7 {[%clk 0:00:33]} 28. g4 {[%clk 0:01:46]}  Be6 {[%clk 0:00:29]} 29. Nfxe5 {[%clk 0:01:45]}  Bxc4 {[%clk 0:00:27]} 30. Nxc4 {[%clk 0:01:42]}  Re8 {[%clk 0:00:25]} 31. Bf3 {[%clk 0:01:39]}  Re6 {[%clk 0:00:25]} 32. Ra8+ {[%clk 0:01:35]}  Kg7 {[%clk 0:00:24]} 33. Rc8 {[%clk 0:01:27]}  Na4 {[%clk 0:00:24]} 34. Rd8 {[%clk 0:01:19]}  Ndxb6 {[%clk 0:00:23]} 35. Nxb6 {[%clk 0:01:19]}  Nxb6 {[%clk 0:00:15]} 36. Rxd4 {[%clk 0:01:17]}  Re7 {[%clk 0:00:14]} 37. Rb4 {[%clk 0:01:17]}  Nc8 {[%clk 0:00:14]} 38. Rxb7 {[%clk 0:01:16]}  Rxb7 {[%clk 0:00:13]} 39. Bxb7 {[%clk 0:01:17]}  Nd6 {[%clk 0:00:14]} 40. Bf3 {[%clk 0:01:17]}  Kf6 {[%clk 0:00:15]} 41. e3 {[%clk 0:01:17]}  Ke5 {[%clk 0:00:15]} 42. d4+ {[%clk 0:01:17]}  Ke6 {[%clk 0:00:15]} 43. Bd1 {[%clk 0:01:15]}  f6 {[%clk 0:00:15]} 44. Bb3+ {[%clk 0:01:15]}  Ke7 {[%clk 0:00:15]} 45. Kg2 {[%clk 0:01:14]}  Nb5 {[%clk 0:00:15]} 46. Kf3 {[%clk 0:01:13]}  Nc3 {[%clk 0:00:16]} 47. Bc2 {[%clk 0:01:10]}  Na2 {[%clk 0:00:15]} 48. Ke4 {[%clk 0:01:08]}  Nb4 {[%clk 0:00:16]} 49. Bb3 {[%clk 0:01:07]}  Kd6 {[%clk 0:00:13]} 50. Kf5 {[%clk 0:01:07]}  Ke7 {[%clk 0:00:14]} 51. Kg6 {[%clk 0:01:06]}  Nd3 {[%clk 0:00:14]} 52. f3 {[%clk 0:01:03]}  Nf2 {[%clk 0:00:15]} 53. Kxh6 {[%clk 0:01:01]}  Nxh3 {[%clk 0:00:15]} 54. Kg6 {[%clk 0:00:58]}  Ng1 {[%clk 0:00:13]} 55. Bd1 {[%clk 0:00:56]}  Nh3 {[%clk 0:00:13]} 56. Kf5 {[%clk 0:00:55]}  Nf2 {[%clk 0:00:14]} 57. Bc2 {[%clk 0:00:52]}  Nh1 {[%clk 0:00:14]} 58. Bd3 {[%clk 0:00:41]}  Nf2 {[%clk 0:00:13]} 59. Bc2 {[%clk 0:00:36]}  Nh1 {[%clk 0:00:11]} 60. Ke4 {[%clk 0:00:32]}  Kd6 {[%clk 0:00:09]} 61. f4 {[%clk 0:00:30]}  Ng3+ {[%clk 0:00:08]} 62. Kf3 {[%clk 0:00:30]}  Nf1 {[%clk 0:00:09]} 63. fxg5 {[%clk 0:00:27]}  fxg5 {[%clk 0:00:09]} 64. e4 {[%clk 0:00:27]}  Nd2+ {[%clk 0:00:09]} 65. Ke3 {[%clk 0:00:27]}  Nc4+ {[%clk 0:00:09]} 66. Kd3 {[%clk 0:00:27]}  Nb6 {[%clk 0:00:05]} 67. e5+ {[%clk 0:00:27]}  Ke7 {[%clk 0:00:05]} 68. Bb3 {[%clk 0:00:28]}  Nd7 {[%clk 0:00:05]} 69. Ke4 {[%clk 0:00:28]}  Nf8 {[%clk 0:00:04]} 70. Kf5 {[%clk 0:00:27]}  Nd7 {[%clk 0:00:03]} 71. Kxg5 {[%clk 0:00:25]}  Nb6 {[%clk 0:00:04]} 72. Kf5 {[%clk 0:00:25]}  Nd7 {[%clk 0:00:04]} 73. g5 {[%clk 0:00:25]}  Nf8 {[%clk 0:00:05]} 74. d5 {[%clk 0:00:25]}  Nh7 {[%clk 0:00:05]} 75. d6+ {[%clk 0:00:24]}  Kf8 {[%clk 0:00:05]} 76. g6 {[%clk 0:00:24]}  Kg7 {[%clk 0:00:04]} 77. d7 {[%clk 0:00:21]}  Nf8 {[%clk 0:00:00]} 78. d8=Q {[%clk 0:00:20]} 1-0

[Event "December 19 Late 2023"]
[Site "https://www.chess.com"]
[Date "2023.12.19"]
[Round "4"]
[White "Kamsky, Gata"]
[Black "Spata, German"]
[Result "1-0"]
[Board "35"]
[TimeControl "180+1"]
[WhiteFideId "2000024"]
[BlackFideId "113026"]
[WhiteElo "2660"]
[BlackElo "2260"]
[WhiteTeam "USA"]
[BlackTeam "ARG"]
[WhiteClock "0:00:45"]
[BlackClock "0:00:00"]

1. d4 {[%clk 0:03:00]}  d5 {[%clk 0:02:33]} 2. Bf4 {[%clk 0:03:00]}  Bf5 {[%clk 0:02:33]} 3. e3 {[%clk 0:03:00]}  c6 {[%clk 0:02:29]} 4. c4 {[%clk 0:03:00]}  e6 {[%clk 0:02:26]} 5. Nc3 {[%clk 0:02:59]}  Qb6 {[%clk 0:02:21]} 6. Qb3 {[%clk 0:02:57]}  dxc4 {[%clk 0:02:16]} 7. Bxc4 {[%clk 0:02:56]}  Nf6 {[%clk 0:02:15]} 8. Nf3 {[%clk 0:02:56]}  Nbd7 {[%clk 0:02:14]} 9. O-O {[%clk 0:02:55]}  Be7 {[%clk 0:02:14]} 10. Rfe1 {[%clk 0:02:54]}  Ne4 {[%clk 0:02:10]} 11. Nxe4 {[%clk 0:02:45]}  Bxe4 {[%clk 0:02:10]} 12. Nd2 {[%clk 0:02:44]}  Bd5 {[%clk 0:02:07]} 13. e4 {[%clk 0:02:43]}  Qxb3 {[%clk 0:02:03]} 14. axb3 {[%clk 0:02:41]}  Bxc4 {[%clk 0:02:01]} 15. Nxc4 {[%clk 0:02:41]}  O-O {[%clk 0:01:44]} 16. Red1 {[%clk 0:02:35]}  Bb4 {[%clk 0:01:35]} 17. f3 {[%clk 0:02:28]}  Nb6 {[%clk 0:01:18]} 18. Na5 {[%clk 0:02:13]}  Bxa5 {[%clk 0:01:17]} 19. Rxa5 {[%clk 0:02:13]}  a6 {[%clk 0:01:12]} 20. Kf2 {[%clk 0:02:12]}  f6 {[%clk 0:00:56]} 21. Bc7 {[%clk 0:02:02]}  Nd7 {[%clk 0:00:55]} 22. Ke2 {[%clk 0:01:57]}  Rfc8 {[%clk 0:00:54]} 23. Bg3 {[%clk 0:01:55]}  Kf7 {[%clk 0:00:53]} 24. h4 {[%clk 0:01:53]}  Re8 {[%clk 0:00:45]} 25. h5 {[%clk 0:01:52]}  Rad8 {[%clk 0:00:42]} 26. Bc7 {[%clk 0:01:48]}  Rc8 {[%clk 0:00:42]} 27. Bd6 {[%clk 0:01:48]}  Red8 {[%clk 0:00:33]} 28. g4 {[%clk 0:01:42]}  h6 {[%clk 0:00:30]} 29. Raa1 {[%clk 0:01:40]}  e5 {[%clk 0:00:26]} 30. dxe5 {[%clk 0:01:18]}  Nxe5 {[%clk 0:00:27]} 31. Bc5 {[%clk 0:01:15]}  Ke8 {[%clk 0:00:22]} 32. f4 {[%clk 0:01:09]}  Rxd1 {[%clk 0:00:19]} 33. Rxd1 {[%clk 0:01:09]}  Nd7 {[%clk 0:00:14]} 34. Bb4 {[%clk 0:01:02]}  c5 {[%clk 0:00:13]} 35. Bc3 {[%clk 0:01:01]}  Ke7 {[%clk 0:00:11]} 36. Ke3 {[%clk 0:00:59]}  Rc6 {[%clk 0:00:11]} 37. g5 {[%clk 0:00:46]}  Rd6 {[%clk 0:00:00]} 38. Rg1 {[%clk 0:00:45]} 1-0

[Event "December 19 Late 2023"]
[Site "https://www.chess.com"]
[Date "2023.12.19"]
[Round "4"]
[White "Pulpan, Jakub"]
[Black "Gabuzyan, Hovhannes"]
[Result "1-0"]
[Board "36"]
[TimeControl "180+1"]
[WhiteFideId "302759"]
[BlackFideId "13303732"]
[WhiteElo "2501"]
[BlackElo "2486"]
[WhiteTeam "CZE"]
[BlackTeam "ARM"]
[WhiteClock "0:00:13"]
[BlackClock "0:00:31"]

1. Nf3 {[%clk 0:03:00]}  Nf6 {[%clk 0:02:59]} 2. b3 {[%clk 0:02:58]}  b6 {[%clk 0:02:58]} 3. g3 {[%clk 0:02:55]}  Bb7 {[%clk 0:02:53]} 4. Bg2 {[%clk 0:02:55]}  e6 {[%clk 0:02:53]} 5. Bb2 {[%clk 0:02:56]}  Be7 {[%clk 0:02:53]} 6. O-O {[%clk 0:02:56]}  O-O {[%clk 0:02:54]} 7. c4 {[%clk 0:02:57]}  c5 {[%clk 0:02:53]} 8. Nc3 {[%clk 0:02:55]}  d5 {[%clk 0:02:53]} 9. cxd5 {[%clk 0:02:55]}  Nxd5 {[%clk 0:02:54]} 10. Rc1 {[%clk 0:02:50]}  Nd7 {[%clk 0:02:53]} 11. d4 {[%clk 0:02:50]}  N7f6 {[%clk 0:02:41]} 12. Nxd5 {[%clk 0:02:48]}  Bxd5 {[%clk 0:02:39]} 13. dxc5 {[%clk 0:02:42]}  Bxc5 {[%clk 0:02:38]} 14. Ne5 {[%clk 0:02:42]}  Bxg2 {[%clk 0:02:34]} 15. Kxg2 {[%clk 0:02:43]}  Qe7 {[%clk 0:02:34]} 16. Qd3 {[%clk 0:02:36]}  Qb7+ {[%clk 0:02:12]} 17. Qf3 {[%clk 0:02:26]}  Qxf3+ {[%clk 0:02:09]} 18. Kxf3 {[%clk 0:02:27]}  Nd5 {[%clk 0:02:09]} 19. Nd7 {[%clk 0:02:23]}  Rfc8 {[%clk 0:02:08]} 20. Nxc5 {[%clk 0:02:23]}  bxc5 {[%clk 0:02:09]} 21. Rfd1 {[%clk 0:01:54]}  f5 {[%clk 0:02:07]} 22. e4 {[%clk 0:01:51]}  fxe4+ {[%clk 0:02:07]} 23. Kxe4 {[%clk 0:01:52]}  a5 {[%clk 0:02:05]} 24. Rc4 {[%clk 0:01:20]}  Nb6 {[%clk 0:01:58]} 25. Rc2 {[%clk 0:01:20]}  a4 {[%clk 0:01:57]} 26. Rd6 {[%clk 0:01:18]}  Nd5 {[%clk 0:01:55]} 27. Rd7 {[%clk 0:01:16]}  Nf6+ {[%clk 0:01:38]} 28. Bxf6 {[%clk 0:01:16]}  gxf6 {[%clk 0:01:39]} 29. Re7 {[%clk 0:00:55]}  Rab8 {[%clk 0:01:23]} 30. bxa4 {[%clk 0:00:38]}  Rb4+ {[%clk 0:01:23]} 31. Kf3 {[%clk 0:00:38]}  Rxa4 {[%clk 0:01:17]} 32. Rb2 {[%clk 0:00:36]}  h5 {[%clk 0:01:08]} 33. Rxe6 {[%clk 0:00:27]}  Kf7 {[%clk 0:01:03]} 34. Rbb6 {[%clk 0:00:27]}  c4 {[%clk 0:01:00]} 35. Rxf6+ {[%clk 0:00:26]}  Ke7 {[%clk 0:01:01]} 36. Rbe6+ {[%clk 0:00:24]}  Kd7 {[%clk 0:01:01]} 37. Rd6+ {[%clk 0:00:25]}  Ke7 {[%clk 0:01:01]} 38. Rfe6+ {[%clk 0:00:24]}  Kf7 {[%clk 0:01:01]} 39. Rc6 {[%clk 0:00:16]}  Rd8 {[%clk 0:00:57]} 40. Re4 {[%clk 0:00:11]}  Rd3+ {[%clk 0:00:56]} 41. Kg2 {[%clk 0:00:12]}  Rc3 {[%clk 0:00:54]} 42. h4 {[%clk 0:00:12]}  Rc2 {[%clk 0:00:54]} 43. a3 {[%clk 0:00:10]}  Rc1 {[%clk 0:00:45]} 44. Rc5 {[%clk 0:00:10]}  Kf6 {[%clk 0:00:42]} 45. Rxh5 {[%clk 0:00:10]}  Rxa3 {[%clk 0:00:42]} 46. Rc5 {[%clk 0:00:11]}  c3 {[%clk 0:00:43]} 47. h5 {[%clk 0:00:10]}  c2 {[%clk 0:00:43]} 48. Rec4 {[%clk 0:00:10]}  Ra2 {[%clk 0:00:40]} 49. Rc6+ {[%clk 0:00:10]}  Kg7 {[%clk 0:00:39]} 50. h6+ {[%clk 0:00:09]}  Kh7 {[%clk 0:00:40]} 51. g4 {[%clk 0:00:09]}  Raa1 {[%clk 0:00:37]} 52. Rxc2 {[%clk 0:00:09]}  Rg1+ {[%clk 0:00:37]} 53. Kf3 {[%clk 0:00:09]}  Ra3+ {[%clk 0:00:37]} 54. R2c3 {[%clk 0:00:10]}  Rxc3+ {[%clk 0:00:37]} 55. Rxc3 {[%clk 0:00:10]}  Kxh6 {[%clk 0:00:37]} 56. Rc5 {[%clk 0:00:10]}  Kg6 {[%clk 0:00:36]} 57. Kf4 {[%clk 0:00:10]}  Ra1 {[%clk 0:00:36]} 58. Rc6+ {[%clk 0:00:10]}  Kg7 {[%clk 0:00:36]} 59. Kg3 {[%clk 0:00:10]}  Rg1+ {[%clk 0:00:36]} 60. Kf4 {[%clk 0:00:10]}  Ra1 {[%clk 0:00:36]} 61. f3 {[%clk 0:00:10]}  Ra5 {[%clk 0:00:35]} 62. Kg3 {[%clk 0:00:10]}  Ra4 {[%clk 0:00:35]} 63. Rb6 {[%clk 0:00:11]}  Kf7 {[%clk 0:00:35]} 64. f4 {[%clk 0:00:11]}  Kg7 {[%clk 0:00:35]} 65. f5 {[%clk 0:00:11]}  Kf7 {[%clk 0:00:36]} 66. Kh4 {[%clk 0:00:11]}  Ra1 {[%clk 0:00:34]} 67. Kg5 {[%clk 0:00:11]}  Ra7 {[%clk 0:00:34]} 68. Rh6 {[%clk 0:00:11]}  Kg7 {[%clk 0:00:34]} 69. f6+ {[%clk 0:00:10]}  Kg8 {[%clk 0:00:35]} 70. Rg6+ {[%clk 0:00:10]}  Kh7 {[%clk 0:00:34]} 71. Rh6+ {[%clk 0:00:10]}  Kg8 {[%clk 0:00:34]} 72. Rh1 {[%clk 0:00:10]}  Ra4 {[%clk 0:00:31]} 73. Kf5 {[%clk 0:00:09]}  Ra5+ {[%clk 0:00:29]} 74. Kg6 {[%clk 0:00:10]}  Ra7 {[%clk 0:00:29]} 75. f7+ {[%clk 0:00:10]}  Rxf7 {[%clk 0:00:29]} 76. Rh8+ {[%clk 0:00:10]}  Kxh8 {[%clk 0:00:29]} 77. Kxf7 {[%clk 0:00:11]}  Kh7 {[%clk 0:00:30]} 78. g5 {[%clk 0:00:12]}  Kh8 {[%clk 0:00:31]} 79. Kg6 {[%clk 0:00:12]}  Kg8 {[%clk 0:00:31]} 80. Kh6 {[%clk 0:00:12]}  Kh8 {[%clk 0:00:32]} 81. g6 {[%clk 0:00:13]}  Kg8 {[%clk 0:00:31]} 82. g7 {[%clk 0:00:13]} 1-0

[Event "December 19 Late 2023"]
[Site "https://www.chess.com"]
[Date "2023.12.19"]
[Round "4"]
[White "Livaic, Leon"]
[Black "Bold, Andre"]
[Result "1-0"]
[Board "37"]
[TimeControl "180+1"]
[WhiteFideId "14531534"]
[BlackFideId "16208471"]
[WhiteElo "2541"]
[BlackElo "2110"]
[WhiteTeam "CRO"]
[BlackTeam "GER"]
[WhiteClock "0:00:48"]
[BlackClock "0:00:10"]

1. e4 {[%clk 0:03:00]}  c6 {[%clk 0:02:58]} 2. d4 {[%clk 0:03:01]}  d5 {[%clk 0:02:59]} 3. exd5 {[%clk 0:03:01]}  cxd5 {[%clk 0:02:59]} 4. Bd3 {[%clk 0:03:02]}  Nf6 {[%clk 0:03:00]} 5. c3 {[%clk 0:03:03]}  Nc6 {[%clk 0:03:01]} 6. h3 {[%clk 0:03:02]}  g6 {[%clk 0:03:00]} 7. Nf3 {[%clk 0:03:02]}  Bf5 {[%clk 0:03:00]} 8. Ne5 {[%clk 0:03:02]}  Bxd3 {[%clk 0:02:55]} 9. Nxd3 {[%clk 0:03:03]}  Bg7 {[%clk 0:02:54]} 10. Bf4 {[%clk 0:03:03]}  O-O {[%clk 0:02:52]} 11. Nd2 {[%clk 0:03:03]}  b6 {[%clk 0:02:35]} 12. O-O {[%clk 0:03:03]}  Rc8 {[%clk 0:02:35]} 13. Qf3 {[%clk 0:03:02]}  e6 {[%clk 0:02:32]} 14. Rfe1 {[%clk 0:03:00]}  Qd7 {[%clk 0:02:25]} 15. Re2 {[%clk 0:02:58]}  Na5 {[%clk 0:02:24]} 16. Bg5 {[%clk 0:02:50]}  Ne8 {[%clk 0:02:14]} 17. Rae1 {[%clk 0:02:49]}  Nd6 {[%clk 0:02:11]} 18. h4 {[%clk 0:02:37]}  h5 {[%clk 0:02:07]} 19. g4 {[%clk 0:02:30]}  hxg4 {[%clk 0:02:02]} 20. Qxg4 {[%clk 0:02:31]}  Nf5 {[%clk 0:01:31]} 21. Nf3 {[%clk 0:02:23]}  Rce8 {[%clk 0:01:15]} 22. Bf4 {[%clk 0:02:09]}  Nc4 {[%clk 0:01:09]} 23. h5 {[%clk 0:02:06]}  gxh5 {[%clk 0:01:04]} 24. Qxh5 {[%clk 0:02:06]}  f6 {[%clk 0:01:00]} 25. Kg2 {[%clk 0:01:45]}  Qf7 {[%clk 0:00:54]} 26. Qg4 {[%clk 0:01:45]}  Re7 {[%clk 0:00:24]} 27. b3 {[%clk 0:01:20]}  Na5 {[%clk 0:00:22]} 28. Nb4 {[%clk 0:01:20]}  Rfe8 {[%clk 0:00:22]} 29. Kf1 {[%clk 0:01:02]}  Kf8 {[%clk 0:00:22]} 30. Nxd5 {[%clk 0:00:58]}  exd5 {[%clk 0:00:21]} 31. Qxf5 {[%clk 0:00:58]}  Rxe2 {[%clk 0:00:20]} 32. Rxe2 {[%clk 0:00:59]}  Rxe2 {[%clk 0:00:20]} 33. Kxe2 {[%clk 0:01:00]}  Qe7+ {[%clk 0:00:19]} 34. Kd3 {[%clk 0:00:56]}  Qd8 {[%clk 0:00:18]} 35. Ng5 {[%clk 0:00:49]}  Kg8 {[%clk 0:00:10]} 36. Qe6+ {[%clk 0:00:48]} 1-0

[Event "December 19 Late 2023"]
[Site "https://www.chess.com"]
[Date "2023.12.19"]
[Round "4"]
[White "Adewumi, Tanitoluwa"]
[Black "Ferreira, Vitor Hugo Vieira"]
[Result "0-1"]
[Board "41"]
[TimeControl "180+1"]
[WhiteFideId "30966396"]
[BlackFideId "2119765"]
[WhiteElo "2325"]
[BlackElo "2123"]
[WhiteTeam "USA"]
[BlackTeam "BRA"]
[WhiteClock "0:00:00"]
[BlackClock "0:00:15"]

1. Nf3 {[%clk 0:02:58]}  d5 {[%clk 0:02:59]} 2. b3 {[%clk 0:02:58]}  Bf5 {[%clk 0:02:58]} 3. Bb2 {[%clk 0:02:58]}  c6 {[%clk 0:02:57]} 4. d3 {[%clk 0:02:59]}  Nf6 {[%clk 0:02:57]} 5. g3 {[%clk 0:02:59]}  h6 {[%clk 0:02:57]} 6. Bg2 {[%clk 0:02:59]}  e6 {[%clk 0:02:58]} 7. O-O {[%clk 0:03:00]}  Be7 {[%clk 0:02:58]} 8. Nbd2 {[%clk 0:03:01]}  Bh7 {[%clk 0:02:58]} 9. Re1 {[%clk 0:02:58]}  O-O {[%clk 0:02:58]} 10. e4 {[%clk 0:02:58]}  Nbd7 {[%clk 0:02:57]} 11. a3 {[%clk 0:02:57]}  a5 {[%clk 0:02:54]} 12. Qe2 {[%clk 0:02:54]}  dxe4 {[%clk 0:02:48]} 13. dxe4 {[%clk 0:02:53]}  Nc5 {[%clk 0:02:48]} 14. Rad1 {[%clk 0:02:53]}  Qb6 {[%clk 0:02:47]} 15. Nc4 {[%clk 0:02:52]}  Qa6 {[%clk 0:02:46]} 16. e5 {[%clk 0:01:45]}  Nd5 {[%clk 0:02:45]} 17. Nd4 {[%clk 0:01:45]}  b5 {[%clk 0:02:30]} 18. Nd6 {[%clk 0:01:42]}  b4 {[%clk 0:02:26]} 19. Qxa6 {[%clk 0:01:16]}  Rxa6 {[%clk 0:02:27]} 20. Bf1 {[%clk 0:01:16]}  Rb6 {[%clk 0:02:13]} 21. Nc4 {[%clk 0:01:15]}  Ra6 {[%clk 0:02:03]} 22. Nd6 {[%clk 0:01:05]}  Rb6 {[%clk 0:01:55]} 23. Nc4 {[%clk 0:01:05]}  Ra6 {[%clk 0:01:54]} 24. a4 {[%clk 0:01:05]}  Rd8 {[%clk 0:01:16]} 25. Nd6 {[%clk 0:00:36]}  Rb6 {[%clk 0:01:12]} 26. Nc4 {[%clk 0:00:36]}  Ra6 {[%clk 0:01:11]} 27. Rd2 {[%clk 0:00:33]}  Ne4 {[%clk 0:01:08]} 28. Rxe4 {[%clk 0:00:31]}  Bxe4 {[%clk 0:01:09]} 29. Nd6 {[%clk 0:00:30]}  Bxd6 {[%clk 0:01:04]} 30. exd6 {[%clk 0:00:24]}  Rb6 {[%clk 0:00:56]} 31. f3 {[%clk 0:00:22]}  Bg6 {[%clk 0:00:52]} 32. f4 {[%clk 0:00:20]}  c5 {[%clk 0:00:52]} 33. Nb5 {[%clk 0:00:19]}  Rbxd6 {[%clk 0:00:44]} 34. Nxd6 {[%clk 0:00:19]}  Rxd6 {[%clk 0:00:45]} 35. Be5 {[%clk 0:00:18]}  Rd8 {[%clk 0:00:36]} 36. Kf2 {[%clk 0:00:18]}  f6 {[%clk 0:00:36]} 37. Bc7 {[%clk 0:00:15]}  Ra8 {[%clk 0:00:34]} 38. Bd6 {[%clk 0:00:12]}  Nc3 {[%clk 0:00:32]} 39. Bg2 {[%clk 0:00:06]}  Be4 {[%clk 0:00:31]} 40. Ke3 {[%clk 0:00:02]}  Bxg2 {[%clk 0:00:30]} 41. Rxg2 {[%clk 0:00:03]}  Rc8 {[%clk 0:00:23]} 42. Rd2 {[%clk 0:00:04]}  c4 {[%clk 0:00:22]} 43. Be7 {[%clk 0:00:02]}  Nd5+ {[%clk 0:00:21]} 44. Rxd5 {[%clk 0:00:02]}  exd5 {[%clk 0:00:22]} 45. Kd4 {[%clk 0:00:02]}  cxb3 {[%clk 0:00:21]} 46. cxb3 {[%clk 0:00:03]}  Rc2 {[%clk 0:00:21]} 47. Bd8 {[%clk 0:00:04]}  Rc3 {[%clk 0:00:21]} 48. Bxa5 {[%clk 0:00:04]}  Rxb3 {[%clk 0:00:22]} 49. Kxd5 {[%clk 0:00:05]}  Ra3 {[%clk 0:00:20]} 50. Bxb4 {[%clk 0:00:04]}  Rxa4 {[%clk 0:00:21]} 51. Bc5 {[%clk 0:00:04]}  Ra2 {[%clk 0:00:20]} 52. h4 {[%clk 0:00:04]}  Rg2 {[%clk 0:00:21]} 53. Ke4 {[%clk 0:00:03]}  Rxg3 {[%clk 0:00:21]} 54. Kf5 {[%clk 0:00:03]}  h5 {[%clk 0:00:19]} 55. Bd6 {[%clk 0:00:03]}  Kf7 {[%clk 0:00:18]} 56. Bc5 {[%clk 0:00:03]}  Rg4 {[%clk 0:00:18]} 57. Bf2 {[%clk 0:00:02]}  g6+ {[%clk 0:00:16]} 58. Ke4 {[%clk 0:00:03]}  Ke6 {[%clk 0:00:16]} 59. Kf3 {[%clk 0:00:02]}  Kf5 {[%clk 0:00:16]} 60. Be3 {[%clk 0:00:02]}  Rxh4 {[%clk 0:00:16]} 61. Bf2 {[%clk 0:00:00]}  Rh3+ {[%clk 0:00:15]} 0-1

[Event "December 19 Late 2023"]
[Site "https://www.chess.com"]
[Date "2023.12.19"]
[Round "4"]
[White "Postny, Evgeny"]
[Black "Tao, Sihan"]
[Result "1/2-1/2"]
[Board "43"]
[TimeControl "180+1"]
[WhiteFideId "2804344"]
[BlackFideId "30982677"]
[WhiteElo "2505"]
[BlackElo "1943"]
[WhiteTeam "ISR"]
[BlackTeam "USA"]
[WhiteClock "0:00:23"]
[BlackClock "0:00:46"]

1. e4 {[%clk 0:03:00]}  c6 {[%clk 0:02:57]} 2. d4 {[%clk 0:03:00]}  d5 {[%clk 0:02:58]} 3. Nd2 {[%clk 0:03:00]}  dxe4 {[%clk 0:02:57]} 4. Nxe4 {[%clk 0:03:01]}  Nf6 {[%clk 0:02:55]} 5. Nxf6+ {[%clk 0:03:00]}  exf6 {[%clk 0:02:56]} 6. Bd3 {[%clk 0:02:55]}  Bd6 {[%clk 0:02:51]} 7. Ne2 {[%clk 0:02:51]}  O-O {[%clk 0:02:50]} 8. O-O {[%clk 0:02:50]}  Re8 {[%clk 0:02:48]} 9. Bf4 {[%clk 0:02:48]}  a5 {[%clk 0:02:46]} 10. Re1 {[%clk 0:02:45]}  Na6 {[%clk 0:02:45]} 11. a3 {[%clk 0:02:36]}  Nc7 {[%clk 0:02:44]} 12. c4 {[%clk 0:02:29]}  Bg4 {[%clk 0:02:40]} 13. Bxd6 {[%clk 0:02:21]}  Qxd6 {[%clk 0:02:39]} 14. Qd2 {[%clk 0:02:20]}  Ne6 {[%clk 0:02:36]} 15. d5 {[%clk 0:02:14]}  cxd5 {[%clk 0:02:35]} 16. cxd5 {[%clk 0:02:14]}  Nc5 {[%clk 0:02:33]} 17. Bc2 {[%clk 0:01:51]}  Rxe2 {[%clk 0:02:24]} 18. Rxe2 {[%clk 0:01:52]}  Bxe2 {[%clk 0:02:25]} 19. Qxe2 {[%clk 0:01:51]}  Qxd5 {[%clk 0:02:25]} 20. Rd1 {[%clk 0:01:51]}  Qe5 {[%clk 0:01:57]} 21. Qxe5 {[%clk 0:01:46]}  fxe5 {[%clk 0:01:58]} 22. Rd5 {[%clk 0:01:46]}  Ne6 {[%clk 0:01:58]} 23. Rxe5 {[%clk 0:01:36]}  Rc8 {[%clk 0:01:57]} 24. Bd3 {[%clk 0:01:34]}  Rc1+ {[%clk 0:01:51]} 25. Bf1 {[%clk 0:01:34]}  b6 {[%clk 0:01:51]} 26. g3 {[%clk 0:01:30]}  g6 {[%clk 0:01:50]} 27. Kg2 {[%clk 0:01:28]}  Rc5 {[%clk 0:01:46]} 28. Rxc5 {[%clk 0:01:26]}  Nxc5 {[%clk 0:01:46]} 29. Kf3 {[%clk 0:01:25]}  Kf8 {[%clk 0:01:46]} 30. Kf4 {[%clk 0:01:23]}  f6 {[%clk 0:01:44]} 31. Ke3 {[%clk 0:01:21]}  Ke7 {[%clk 0:01:44]} 32. Kd4 {[%clk 0:01:21]}  Kd6 {[%clk 0:01:44]} 33. h4 {[%clk 0:01:19]}  h6 {[%clk 0:01:41]} 34. Kc4 {[%clk 0:01:13]}  g5 {[%clk 0:01:41]} 35. Kb5 {[%clk 0:01:10]}  Kc7 {[%clk 0:01:41]} 36. hxg5 {[%clk 0:01:10]}  hxg5 {[%clk 0:01:41]} 37. f3 {[%clk 0:01:08]}  Ne6 {[%clk 0:01:39]} 38. Kc4 {[%clk 0:01:06]}  Kd6 {[%clk 0:01:38]} 39. Bd3 {[%clk 0:01:06]}  Nc5 {[%clk 0:01:34]} 40. Bc2 {[%clk 0:01:04]}  Ne6 {[%clk 0:01:32]} 41. Bf5 {[%clk 0:01:02]}  Nc5 {[%clk 0:01:32]} 42. b4 {[%clk 0:01:02]}  axb4 {[%clk 0:01:31]} 43. axb4 {[%clk 0:01:02]}  Nb7 {[%clk 0:01:17]} 44. Be4 {[%clk 0:01:02]}  Nd8 {[%clk 0:01:17]} 45. Bd5 {[%clk 0:01:02]}  Nc6 {[%clk 0:01:14]} 46. Bxc6 {[%clk 0:00:56]}  Kxc6 {[%clk 0:01:15]} 47. b5+ {[%clk 0:00:47]}  Kd6 {[%clk 0:01:14]} 48. Kd4 {[%clk 0:00:47]}  f5 {[%clk 0:01:09]} 49. g4 {[%clk 0:00:34]}  Ke6 {[%clk 0:00:41]} 50. gxf5+ {[%clk 0:00:17]}  Kxf5 {[%clk 0:00:42]} 51. Kd5 {[%clk 0:00:17]}  Kf4 {[%clk 0:00:43]} 52. Kc6 {[%clk 0:00:18]}  Kxf3 {[%clk 0:00:43]} 53. Kxb6 {[%clk 0:00:18]}  g4 {[%clk 0:00:44]} 54. Kc7 {[%clk 0:00:19]}  g3 {[%clk 0:00:45]} 55. b6 {[%clk 0:00:20]}  g2 {[%clk 0:00:46]} 56. b7 {[%clk 0:00:20]}  g1=Q {[%clk 0:00:46]} 57. b8=Q {[%clk 0:00:21]}  Qg3+ {[%clk 0:00:45]} 58. Kc8 {[%clk 0:00:22]}  Qxb8+ {[%clk 0:00:46]} 59. Kxb8 {[%clk 0:00:23]} 1/2-1/2